[Event "Romanian-ch Youth Open U14 2024"]
[Site "Eforie Nord"]
[Date "2024.04.15"]
[Round "5.1"]
[White "Ilinca, Felix-Antonio"]
[Black "Dodoi, Matei-Teodor"]
[Result "1-0"]
[ECO "B12"]
[WhiteElo "2371"]
[BlackElo "2070"]
[Annotator "TA"]
[PlyCount "113"]
[EventDate "2024.04.10"]
[EventType "swiss"]
[EventCountry "ROU"]
[SourceTitle "playchess.com"]
[Source "ChessBase"]
[SourceQuality "1"]
[TimeControl "5400+30"]

{[%evp 12,113,12,9,10,0,0,0,12,0,0,0,0,7,16,13,18,0,70,64,67,72,143,71,66,68,65,62,68,50,46,28,45,45,45,45,52,52,54,52,52,9,46,46,46,71,71,11,0,0,0,0,0,0,2,0,0,0,0,0,16,37,31,22,31,74,373,360,368,359,364,221,360,360,339,325,616,608,587,583,29985,29986,29990,29954,29981,29975,29982,29976,6507,422,1804,1786,1635,1541,6323,6980,29981,29982,29982,29983,29984,29985,29987,29988]} 1. e4 {[%emt 0:02:46]} c6 {[%emt 0:00:37]} 2. d4 {[%emt 0:00:08]} d5 {[%emt 0:00:06]} 3. e5 {[%emt 0:00:04]} Bf5 {[%emt 0:00:06]} 4. h4 {[%emt 0:00:06]} h5 {[%emt 0:00:29]} 5. Bd3 {[%emt 0:00:33]} Bxd3 {[%emt 0:00:09]} 6. Qxd3 {[%emt 0:00:07]} e6 {[%emt 0:00:10]} 7. Nf3 {[%emt 0:00:05]} Qa5+ {[%emt 0:08:29]} 8. Nbd2 {[%emt 0:00:09]} Qa6 {[%emt 0:00:08]} 9. c4 {[%emt 0:00:40]} Nh6 {[%emt 0:02:03] The position is equal.} 10. O-O {[%emt 0:01:33]} Nf5 {[%emt 0:01:45]} 11. b3 {[%emt 0:02:54]} Nd7 {[%emt 0:01:43]} 12. a4 {[%emt 0:01:02][%cal Ba2a4,Ba4a5][%mdl 32]} Rc8 {[%emt 0:08:33]} 13. Qc3 {[%emt 0:07:12]} b6 {[%emt 0:08:11]} 14. a5 {[%emt 0:04:34]} b5 {[%emt 0:02:46]} ({Black should play} 14... Qb7 $1 $11) 15. c5 $1 $14 {[%emt 0:03:26]} Be7 {[%emt 0:03:09]} 16. g3 {[%emt 0:00:51]} f6 {[%emt 0:13:58] [#]} (16... b4 $142 17. Qxb4 Rh6) 17. exf6 {[%emt 0:06:47]} (17. b4 $142 $1) 17... gxf6 $16 {[%emt 0:00:29]} 18. Re1 {[%emt 0:02:31]} Kf7 {[%emt 0:03:14]} 19. Nf1 {[%emt 0:03:59]} Rce8 {[%emt 0:05:40]} 20. Bf4 {[%emt 0:03:38]} Qc8 {[%emt 0:02:43]} 21. Ne3 {[%emt 0:08:27]} Ng7 {[%emt 0:06:14]} 22. Ra2 {[%emt 0:03:18]} Nf8 {[%emt 0:03:57]} 23. Rae2 {[%emt 0:05:39]} Ng6 {[%emt 0:01:37]} 24. Ng2 {[%emt 0:00:50]} Bd8 {[%emt 0:03:04]} 25. b4 {[%emt 0:05:35]} Bc7 {[%emt 0:01:17]} 26. Qd2 {[%emt 0:03:50]} (26. Bxc7 {simplifies} Qxc7 27. Ne3 Qd7 28. Qb3) 26... Qb8 {[%emt 0:02:42]} 27. Bxc7 {[%emt 0:00:27]} Qxc7 {[%emt 0:00:06]} 28. Kh1 {[%emt 0:00:14]} a6 {[%emt 0:02:28]} 29. Ng1 {[%emt 0:02:25]} (29. Qd3 $16) 29... e5 {[%emt 0:04:21]} 30. dxe5 {[%emt 0:01:33]} Nxe5 {[%emt 0:05:39]} 31. Nf4 {[%emt 0:03:52]} Qd7 {[%emt 0:00:40]} 32. Qc3 {[%emt 0:02:41]} Qf5 $1 {[%emt 0:02:41]} 33. Qd4 {[%emt 0:05:21]} Re7 {[%emt 0:01:47]} 34. Kg2 {[%emt 0:03:39]} Rhe8 {[%emt 0:02:02]} 35. Qd1 {[%emt 0:00:47]} Ng4 {[%emt 0:01:23]} 36. Nf3 {[%emt 0:01:23][%cal Bg1f3,Bf3d4,Bd4f5,Bf5e7][%mdl 32] Dancing on a razor blade.} Rxe2 {[%emt 0:01:06]} 37. Nxe2 {[%emt 0:00:12] Black should prevent Ned4.} Ne6 {[%emt 0:01:20]} 38. Qd2 {[%emt 0:00:18] [#] Ned4 is the strong threat.} Kg7 $2 {[%emt 0:01:53][%mdl 8192] This costs Black the game.} (38... Qg6 $16) 39. Ned4 $18 {[%emt 0:02:25]} Nxd4 {[%emt 0:00:29]} 40. Nxd4 {[%emt 0:00:09]} Qd7 {[%emt 0:00:33]} 41. Nf5+ {[%emt 0:01:11]} Kg6 {[%emt 0:00:31]} (41... Kg8 $142 42. Rxe8+ Qxe8) 42. Rxe8 {[%emt 0:01:30]} Qxe8 {[%emt 0:00:04][%mdl 4096] Endgame. KQN-KQN} 43. Qc2 {[%emt 0:00:05] Strongly threatening Nd6+.} Qe5 {[%emt 0:01:05]} (43... Qe4+ 44. Qxe4 dxe4 45. Ne7+ Kf7 46. Nxc6 f5) 44. Ne7+ {[%emt 0:00:33]} Kf7 {[%emt 0:00:27][%cal Bg6f7,Bf7e6,Be6f5,Bf5e4,Be4d3,Bd3c3][%mdl 32]} 45. Nxc6 {[%emt 0:00:31]} Qa1 {[%emt 0:00:30]} 46. Qh7+ {[%emt 0:00:44]} Ke6 {[%emt 0:00:26]} 47. Qxh5 {[%emt 0:00:29]} Qd1 {[%emt 0:00:34]} 48. Qe8+ {[%emt 0:00:32]} Kf5 {[%emt 0:00:16]} 49. Qd7+ {[%emt 0:02:05]} Ke4 {[%emt 0:00:39]} 50. Qh7+ {[%emt 0:00:13]} (50. Qe6+ $142 Ne5 51. Nxe5 (51. Qxf6 Nxc6 52. Qxc6 Qf3+ 53. Kg1 Qf7 $18) 51... fxe5 52. Qg6+ (52. Qxa6 Qf3+ 53. Kg1 Qd1+ 54. Kh2 Qe1 $18) 52... Kd4 53. c6 (53. Qxa6 Kc3 $18)) 50... f5 {[%emt 0:00:31][%cal Bf6f5,Bf5g4][%mdl 32] ( -> ...Qf3+)} 51. Qe7+ {[%emt 0:00:12]} Kd3 {[%emt 0:00:12]} 52. Ne5+ {[%emt 0:00:15]} Kc3 {[%emt 0:00:31]} 53. Nxg4 {[%emt 0:01:05]} ({Weaker is} 53. c6 Ne3+ 54. Kh2 (54. fxe3 Qe2+ 55. Kg1 Qe1+ 56. Kg2 Qe2+ 57. Kg1 Qe1+ 58. Kg2 Qe2+ $11) 54... d4 $18) 53... fxg4 {[%emt 0:00:05]} 54. c6 {[%emt 0:00:29] White mates.} Qf3+ {[%emt 0:00:55]} 55. Kg1 {[%emt 0:00:08]} Qd1+ {[%emt 0:00:23]} 56. Kh2 {[%emt 0:00:05]} Qc2 {[%emt 0:00:58]} 57. Qc5+ {[%emt 0:00:06] Weighted Error Value: White=0.19 (very precise) /Black=0.48.  Loses game:     	---       	Black=1      Mistake:       	White=2     	Black=4      Inaccurate:     	White=2     	Black=1      OK:         	White=16    	Black=17     Best:        	White=2     	Black=3      Strong:       	White=1     	Black=1} 1-0

[Event "Romanian-ch Youth Open U14 2024"]
[Site "Eforie Nord"]
[Date "2024.04.15"]
[Round "5.2"]
[White "Gales, Randi-Ioan"]
[Black "Leu, Dragos Stefan"]
[Result "1-0"]
[ECO "A21"]
[WhiteElo "2026"]
[BlackElo "1948"]
[Annotator "NA RC"]
[PlyCount "57"]
[EventDate "2024.04.10"]
[EventType "swiss"]
[EventCountry "ROU"]
[SourceTitle "playchess.com"]
[Source "ChessBase"]
[SourceQuality "1"]
[TimeControl "5400+30"]

1. c4 {[%emt 0:00:05]} e5 {[%emt 0:00:16]} 2. g3 {[%emt 0:00:09]} d6 {[%emt 0:00:11]} 3. Nc3 {[%emt 0:00:45]} f5 {[%emt 0:00:30]} 4. d4 {[%emt 0:00:31]} Nc6 {[%emt 0:05:15]} 5. dxe5 {[%emt 0:09:38]} dxe5 {[%emt 0:08:56]} 6. Qxd8+ {[%emt 0:01:30]} Nxd8 {[%emt 0:00:47]} 7. Nf3 {[%emt 0:14:31]} e4 {[%emt 0:14:34]} 8. Nd4 {[%emt 0:00:38]} c6 {[%emt 0:02:11]} 9. g4 {[%emt 0:06:00]} fxg4 {[%emt 0:17:15]} 10. Nxe4 {[%emt 0:05:50]} Nf6 {[%emt 0:02:09]} 11. Nxf6+ {[%emt 0:05:31]} gxf6 {[%emt 0:00:58]} 12. Bg2 {[%emt 0:02:50]} Ne6 {[%emt 0:09:05]} 13. Nxc6 {[%emt 0:14:56]} Bd7 {[%emt 0:17:53]} 14. Na5 {[%emt 0:00:01]} Nd4 {[%emt 0:00:16]} 15. O-O {[%emt 0:10:23]} Nxe2+ {[%emt 0:06:06]} 16. Kh1 {[%emt 0:00:04]} Nxc1 {[%emt 0:02:47]} 17. Raxc1 {[%emt 0:01:15]} O-O-O {[%emt 0:01:50]} 18. Nxb7 {[%emt 0:01:49]} Re8 {[%emt 0:00:04]} 19. c5 {[%emt 0:04:21]} Kc7 {[%emt 0:01:23]} 20. c6 {[%emt 0:06:59]} Bc8 {[%emt 0:01:43]} 21. Rc4 {[%emt 0:01:40]} Re2 {[%emt 0:03:45]} 22. Ra4 {[%emt 0:00:15]} Rxb2 {[%emt 0:02:22]} 23. Rxa7 {[%emt 0:00:06]} Kb8 {[%emt 0:00:08]} 24. Ra4 {[%emt 0:00:27]} h5 {[%emt 0:01:04]} 25. Bd5 {[%emt 0:05:53]} h4 {[%emt 0:00:36]} 26. Rc1 {[%emt 0:01:32]} Rh7 {[%emt 0:00:13]} 27. Nd6 {[%emt 0:00:27]} Bb7 {[%emt 0:01:10]} 28. cxb7 {[%emt 0:00:20]} Rc7 {[%emt 0:00:11]} 29. Ra8# {[%emt 0:00:01]} 1-0

[Event "Romanian-ch Youth Open U14 2024"]
[Site "Eforie Nord"]
[Date "2024.04.16"]
[Round "6.1"]
[White "Tanasie, Cosmin"]
[Black "Gales, Randi-Ioan"]
[Result "1/2-1/2"]
[ECO "B13"]
[WhiteElo "2017"]
[BlackElo "2026"]
[Annotator "TA"]
[PlyCount "104"]
[EventDate "2024.04.10"]
[EventType "swiss"]
[EventCountry "ROU"]
[SourceTitle "playchess.com"]
[Source "ChessBase"]
[SourceQuality "1"]
[TimeControl "5400+30"]

{[%evp 9,104,-5,33,0,3,0,0,0,0,0,0,14,2,4,12,0,6,3,3,-14,0,-19,-8,0,0,0,0,-23,-15,-49,-51,-46,-37,-45,-41,-58,-54,-58,-56,-66,-61,-93,-84,-155,-60,-52,-56,-53,-54,-61,-61,-75,-62,-77,-68,-72,-72,-65,-65,-66,-40,-38,-45,-55,-40,-39,-59,-76,-67,-132,-83,-83,-36,-39,0,0,0,-344,0,0,0,0,0,0,117,0,0,0,0,0,0,0,0,0,0,0,0]} 1. d4 {[%emt 0:00:00]} Nf6 2. Bf4 {[%emt 0:00:00]} d5 {[%emt 0:05:44]} 3. e3 {[%emt 0:00:15]} c5 {[%emt 0:00:30]} 4. Nc3 {[%emt 0:00:30]} cxd4 {[%emt 0:00:30]} 5. exd4 {[%emt 0:00:30]} Bd7 {[%emt 0:00:30]} 6. Nf3 {[%emt 0:00:30]} Nc6 {[%emt 0:00:30]} 7. h3 {[%emt 0:00:30]} Rc8 {[%emt 0:00:30]} 8. Be2 {[%emt 0:00:30]} e6 {[%emt 0:00:30]} 9. O-O {[%emt 0:00:30]} Be7 {[%emt 0:00:30]} 10. a3 {[%emt 0:00:30]} O-O {[%emt 0:00:30]} 11. Bd3 {[%emt 0:00:30]} Na5 {[%emt 0:00:30]} 12. Ne5 {[%emt 0:00:30]} Nc4 {[%emt 0:00:30]} 13. Bxc4 {[%emt 0:00:30]} dxc4 {[%emt 0:00:30]} 14. Bg5 {[%emt 0:00:30]} h6 {[%emt 0:00:30]} 15. Bxf6 {[%emt 0:00:30]} Bxf6 {[%emt 0:00:30]} 16. Ne4 {[%emt 0:00:30]} Be7 {[%emt 0:00:30]} 17. c3 {[%emt 0:00:30]} Bc6 {[%emt 0:00:30]} 18. f3 {[%emt 0:00:30]} Bd5 {[%emt 0:00:30]} 19. Kh1 {[%emt 0:00:30]} Qe8 {[%emt 0:00:30] [#] Threatens to win with ...f6.} 20. Nd2 {[%emt 0:00:30]} Bd6 {[%emt 0:00:30]} 21. Qc2 {[%emt 0:00:30]} b5 {[%emt 0:00:30]} 22. Rfe1 {[%emt 0:00:30]} Qe7 {[%emt 0:00:30]} 23. Ne4 {[%emt 0:00:30]} Bc7 {[%emt 0:00:30]} 24. Qf2 {[%emt 0:00:30]} Rfd8 {[%emt 0:00:30]} 25. g3 {[%emt 0:00:30]} Kh7 {[%emt 0:00:30]} 26. Kg2 {[%emt 0:00:30]} ({Better is} 26. Qc2 Kg8 27. Nd2) 26... Bxe5 {[%emt 0:00:30]} ({Black should try} 26... f6 $17 27. Qc2 Kg8 (27... fxe5 28. Nf6+ Kh8 29. Qh7#)) 27. dxe5 $15 {[%emt 0:00:30]} Bxe4 {[%emt 0:00:30]} 28. Rxe4 {[%emt 0:00:30]} Rd3 {[%emt 1:21:03]} 29. Re2 {[%emt 1:19:21]} Rcd8 {[%emt 0:00:26]} 30. Rf1 {[%emt 0:00:34]} Qd7 {[%emt 0:01:08]} 31. Qc5 {[%emt 0:00:32]} a6 {[%emt 0:01:18]} 32. Qb6 {[%emt 0:00:37]} Rd1 {[%emt 0:01:01]} 33. Rxd1 {[%emt 0:01:24]} Qxd1 $17 {[%emt 0:00:03][%mdl 4096] Endgame. KQR-KQR} 34. Qf2 {[%emt 0:00:09]} Rd3 {[%emt 0:01:27]} 35. Re1 {[%emt 0:00:02] White is weak on the light squares} Qd2 {[%emt 0:00:13]} 36. Re2 {[%emt 0:00:04]} Qc1 {[%emt 0:00:32]} 37. Re1 {[%emt 0:00:06]} Qg5 {[%emt 0:00:28]} 38. Re2 {[%emt 0:01:38]} h5 {[%emt 0:00:20]} 39. f4 {[%emt 0:00:33]} (39. h4 $15 Qc1 40. Re1) 39... Qg6 {[%emt 0:00:10]} (39... Qe7 $142 40. Kh2 Qb7) 40. Re3 {[%emt 0:00:19]} Qf5 {[%emt 0:01:15]} (40... Rd8 $17) 41. Rxd3 $15 {[%emt 0:01:29]} cxd3 {[%emt 0:01:47] KQ-KQ} 42. Qe3 {[%emt 0:00:57]} f6 {[%emt 0:00:11]} 43. Kf3 $2 {[%emt 0:03:22][%mdl 8192]} (43. Qd4 $11) 43... d2 $2 {[%emt 0:01:30]} ({Inferior is} 43... Qxh3 44. exf6 Qh1+ (44... Qf1+ 45. Ke4 $11) 45. Kf2 $11) (43... fxe5 $19 {aiming for ...h4.} 44. Qxe5 Qxh3 45. Qe4+ Kh6 (45... Qf5 46. Qxf5+ exf5 47. Ke3 $15) 46. Qxd3 h4) 44. Qxd2 $11 {[%emt 0:00:48]} fxe5 {[%emt 0:00:08]} 45. g4 {[%emt 0:01:41]} hxg4+ {[%emt 0:00:43]} 46. hxg4 {[%emt 0:00:01]} e4+ {[%emt 0:00:43]} (46... Qb1 $11) 47. Ke3 {[%emt 0:00:42]} (47. Kg3 $16 Qg6 48. Qd4) 47... Qxg4 {[%emt 0:00:13] [#] Strongly threatening ...Qf3+. The position is equal.} 48. Kxe4 {[%emt 0:00:01]} Qf5+ {[%emt 0:00:43]} 49. Ke3 {[%emt 0:00:44]} Qh3+ {[%emt 0:00:48]} 50. Ke4 {[%emt 0:00:11]} Qf5+ {[%emt 0:00:30]} 51. Ke3 {[%emt 0:00:30]} Qh3+ {[%emt 0:00:30]} 52. Ke4 {[%emt 0:00:30]} Qf5+ {[%emt 0:00:30] Weighted Error Value: White=0.26 (precise) /Black=0.23 (precise) .  Loses game:     	White=1     	---        Missed win:     	---       	Black=1      Mistake:       	White=3     	Black=4      Inaccurate:     	White=2     	Black=2      OK:         	White=17    	Black=16} 1/2-1/2

[Event "Romanian-ch Youth Open U14 2024"]
[Site "Eforie Nord"]
[Date "2024.04.16"]
[Round "6.2"]
[White "Constantinoiu, Alexandru Ioan"]
[Black "Ilinca, Felix-Antonio"]
[Result "0-1"]
[ECO "B40"]
[WhiteElo "1831"]
[BlackElo "2371"]
[Annotator "TA"]
[PlyCount "50"]
[EventDate "2024.04.10"]
[EventType "swiss"]
[EventCountry "ROU"]
[SourceTitle "playchess.com"]
[Source "ChessBase"]
[SourceQuality "1"]
[TimeControl "5400+30"]

{[%evp 16,49,-13,-6,22,17,29,34,61,35,91,93,139,132,133,-71,-77,-69,-65,-72,-70,-63,31,-211,-221,-423,-408,-889,-845,-29996,-29997,-29997,-29998,-29998,-29999,-29999]} 1. e4 c5 {[%emt 0:00:00]} 2. Nf3 e6 {[%emt 0:00:26]} 3. d4 cxd4 {[%emt 0:00:30]} 4. Nxd4 {[%emt 0:09:37]} Nf6 {[%emt 0:00:30]} 5. Bd3 {[%emt 0:00:30]} Nc6 {[%emt 0:00:30]} 6. Nxc6 {[%emt 0:00:30]} bxc6 {[%emt 0:00:30]} 7. O-O {[%emt 0:00:30]} d5 {[%emt 0:00:30]} 8. e5 {[%emt 0:00:30]} Nd7 {[%emt 0:00:30]} 9. Re1 {[%emt 0:00:30]} Be7 {[%emt 0:00:30]} 10. Qg4 {[%emt 0:00:30]} g6 {[%emt 0:00:30]} 11. Bh6 {[%emt 0:00:30]} Rb8 {[%emt 0:00:30] White is slightly better.} 12. b3 {[%emt 0:00:30]} Rb4 {[%emt 0:00:30]} (12... Qc7 $14) 13. c4 $16 {[%emt 0:00:30]} dxc4 {[%emt 0:00:30]} (13... Qc7 $142) 14. Bxc4 {[%emt 0:00:30] aiming for Nd2.} Nxe5 {[%emt 0:00:30]} 15. Qe4 {[%emt 0:00:30] [#]} (15. Rxe5 $16 {is forced if you want to stay better.} Bf6 16. Re1 Bxa1 17. Bxe6 Bxe6 (17... Rxg4 $2 18. Bxc8+ $18) 18. Qxb4) 15... Nxc4 $17 {[%emt 0:00:30]} 16. bxc4 {[%emt 0:00:30][%cal Ob1d2]} Bf6 {[%emt 0:00:30]} 17. a3 {[%emt 0:00:30]} (17. Qxc6+ $2 {is the wrong capture.} Bd7 18. Qc5 Qb6 19. Qxb6 axb6 $19) 17... Rb2 $36 {[%emt 0:00:30][%mdl 2048] Hoping for ...g5. White is under pressure.} 18. Qxc6+ {[%emt 0:00:30]} Bd7 {[%emt 0:00:30]} (18... Qd7 $15 19. Qxd7+ Bxd7) 19. Qe4 $2 {[%emt 0:00:30] [#] Now White is beyond hope.} (19. Qf3 $1 $14 {was the only good move.} Bd4 20. Nd2) 19... g5 $1 $19 {[%emt 0:00:30] ...Qb6 is the strong threat.} 20. a4 $2 {[%emt 0:00:30]} (20. Re3 Rxf2 21. Kxf2 Bxa1 22. Rh3) 20... Qb6 {[%emt 0:00:30][%cal Od7c6] Strongly threatening ...Bc6!} 21. Ra3 {[%emt 0:00:30]} (21. Re3 $142 Bc6 22. a5) 21... Bc6 {[%emt 0:00:30]} 22. a5 {[%emt 0:00:30]} Qxf2+ {[%emt 0:00:30] Black mates.} 23. Kh1 {[%emt 0:00:30]} Bxe4 {[%emt 0:00:30][%cal Rf2e1] This pair of bishops is nice.} 24. Rg1 {[%emt 0:00:30]} Qxg2+ {[%emt 0:00:30]} 25. Rxg2 {[%emt 0:00:30]} Rxb1# {[%emt 0:00:30] Weighted Error Value: White=1.46/Black=0.19 (very precise) .  Loses game:     	White=1     	---        Mistake:       	White=3     	Black=3      Inaccurate:     	White=1     	Black=1      OK:         	White=5     	Black=4      Best:        	White=1     	Black=1      Strong:       	---       	Black=1} 0-1

[Event "Romanian-ch Youth Open U14 2024"]
[Site "Eforie Nord"]
[Date "2024.04.17"]
[Round "7.1"]
[White "Ilinca, Felix-Antonio"]
[Black "Gales, Randi-Ioan"]
[Result "1-0"]
[ECO "B30"]
[WhiteElo "2371"]
[BlackElo "2026"]
[Annotator "TA"]
[PlyCount "107"]
[EventDate "2024.04.10"]
[EventType "swiss"]
[EventCountry "ROU"]
[SourceTitle "playchess.com"]
[Source "ChessBase"]
[SourceQuality "1"]
[TimeControl "5400+30"]

{[%evp 9,107,25,32,0,8,0,24,10,13,0,0,-48,-45,-58,-22,-43,-34,-46,0,0,0,0,55,52,66,57,80,84,133,16,24,14,340,356,385,395,401,373,384,365,719,741,878,864,841,673,663,666,1160,1160,992,973,2457,4073,2369,2267,6083,5502,1811,2191,1991,2279,2197,2182,1876,1858,1514,1517,1725,1760,2339,1802,2339,2162,2424,2421,3485,3652,2567,6187,29971,11509,29976,29978,29978,29979,29979,29980,29980,29981,29981,29982,29982,29983,29982,29983,29943,5423,5289,4820]} 1. e4 {[%emt 0:05:14]} c5 {[%emt 0:00:04]} 2. Nf3 {[%emt 0:00:21]} Nc6 {[%emt 0:00:04]} 3. Bb5 {[%emt 0:00:06]} g5 {[%emt 0:00:27]} 4. h3 {[%emt 0:05:34]} h6 {[%emt 0:00:27]} 5. c3 {[%emt 0:04:53]} Nf6 {[%emt 0:01:52]} 6. e5 {[%emt 0:02:47]} Nd5 {[%emt 0:00:33]} 7. O-O {[%emt 0:03:09]} Bg7 {[%emt 0:10:22]} 8. d4 {[%emt 0:03:26] White has an edge.} cxd4 {[%emt 0:02:08]} 9. Nxd4 {[%emt 0:02:02] Hoping for Nf5.} Nc7 {[%emt 0:12:47]} 10. Bxc6 {[%emt 0:05:11]} (10. Ba4 $1 $11 {feels stronger.}) 10... dxc6 $15 {[%emt 0:01:18]} 11. Qe2 {[%emt 0:00:44]} Qd5 {[%emt 0:18:01]} 12. f4 {[%emt 0:02:43]} c5 {[%emt 0:04:04]} 13. Nc2 {[%emt 0:06:24]} gxf4 {[%emt 0:05:03]} (13... Bf5 $15 {deserves consideration.} 14. Ne3 Qd3) 14. Bxf4 $11 {[%emt 0:02:39]} Be6 {[%emt 0:01:13]} 15. Ne3 {[%emt 0:02:59]} Qc6 {[%emt 0:01:30]} (15... Qe4 $1 $11) 16. c4 $1 $14 {[%emt 0:05:12]} O-O-O {[%emt 0:01:30]} 17. Nc3 $36 {[%emt 0:02:00][%mdl 2048] White has the initiative.} Rd4 {[%emt 0:02:15]} 18. Ned5 {[%emt 0:03:56]} Qd7 {[%emt 0:09:18] [#]} (18... Kd8 $142) 19. Nxc7 {[%emt 0:09:04]} (19. Rad1 $1 $16) 19... Bxc4 $1 $11 {[%emt 0:18:14]} 20. Qh5 {[%emt 0:10:34][%cal Oc7b5] aiming for N7b5!} (20. e6 fxe6 21. Qg4 Bf6 $17) (20. Qf3 {is more complex.} e6 21. Qg3 Bf8 22. Nxe6 fxe6 23. Rf3) 20... Bxf1 {[%emt 0:03:41][%mdl 8192] A mistake that costs the game.} (20... e6 $1 $11 {and Black has nothing to worry.}) 21. Rxf1 $18 {[%emt 0:01:18][%cal Ba1f1,Bf1f4,Bf4f7][%mdl 32]} (21. e6 $2 fxe6 22. Rxf1 Rxf4 23. Rxf4 Qxc7 $19 (23... Kxc7 24. Qxc5+ Kb8 25. Rg4 $17)) 21... Rxf4 {[%emt 0:00:29]} 22. Rxf4 {[%emt 0:00:10]} Kxc7 {[%emt 0:00:12][%cal Bc8c7,Bc7b6,Bb6b5][%mdl 32]} 23. Rxf7 {[%emt 0:00:38]} ({Worse is} 23. Qxf7 Bxe5 24. Rf5 Bd4+ (24... Rd8 25. Nb5+ Kc6 26. Rxe5 $11) 25. Kh1 Kb8 $17) 23... Bf8 {[%emt 0:01:57]} 24. Qf3 {[%emt 0:02:48]} Qd8 {[%emt 0:01:56]} (24... Qd4+ 25. Kh1 Qxe5 26. Rxf8 Rxf8 27. Qxf8 Qg5) 25. Nb5+ {[%emt 0:01:37]} Kb6 {[%emt 0:01:16] [#]} 26. Nd6 $1 {[%emt 0:01:12][%mdl 512]} Qd7 {[%emt 0:01:14]} 27. Rxf8 {[%emt 0:04:13]} Rxf8 {[%emt 0:00:12]} 28. Qxf8 {[%emt 0:00:48]} exd6 {[%emt 0:00:02]} 29. Qxh6 {[%emt 0:00:06][%mdl 4096] Endgame. KQ-KQ} Kb5 {[%emt 0:02:13]} 30. Qxd6 {[%emt 0:00:33]} Qf5 {[%emt 0:00:13]} 31. e6 {[%emt 0:00:33][%cal Be5e6,Be6e7][%mdl 32]} Qe4 {[%emt 0:00:34]} 32. e7 {[%emt 0:00:39]} Kc4 {[%emt 0:00:20]} 33. Kf2 {[%emt 0:01:12]} b6 {[%emt 0:00:45]} 34. b3+ {[%emt 0:00:13]} Kc3 {[%emt 0:00:23]} 35. Qg3+ {[%emt 0:00:07]} Kd2 {[%emt 0:00:12]} 36. Qg5+ {[%emt 0:00:28]} Kd3 {[%emt 0:00:26]} 37. Kg1 {[%emt 0:01:35]} Kc2 {[%emt 0:01:02]} 38. h4 {[%emt 0:01:12]} Qd4+ {[%emt 0:00:27]} 39. Kh2 {[%emt 0:00:18]} Qd6+ {[%emt 0:00:14]} 40. g3 {[%emt 0:00:20][%cal Bg2g3,Bg3g4][%mdl 32]} Qe6 {[%emt 0:00:13]} 41. h5 {[%emt 0:00:44] Threatening mate with Qg6+.} Qe2+ {[%emt 0:00:31]} 42. Kh3 {[%emt 0:00:11] White wants to mate with Qf5+.} Qe6+ {[%emt 0:00:42]} 43. g4 {[%emt 0:00:30] White threatens Qg6+ and mate.} Kb2 {[%emt 0:00:36]} 44. Qg7+ {[%emt 0:01:10]} Kxa2 {[%emt 0:00:23]} 45. Qf8 {[%emt 0:00:08]} Qe3+ {[%emt 0:00:28]} 46. Kh4 {[%emt 0:00:21]} Qe1+ {[%emt 0:00:10]} 47. Kg5 {[%emt 0:00:10]} Qe3+ {[%emt 0:00:20]} 48. Kg6 {[%emt 0:00:32]} Qe4+ {[%emt 0:00:25]} 49. Kh6 {[%emt 0:00:22]} Qe6+ {[%emt 0:00:14]} 50. Kh7 {[%emt 0:00:09]} Qe4+ {[%emt 0:00:38]} 51. Kh8 {[%emt 0:00:12]} Qd4+ {[%emt 0:00:45]} 52. Qg7 {[%emt 0:00:10]} Qd7 {[%emt 0:00:14]} 53. h6 {[%emt 0:00:38]} (53. Qf7 $142 Qd4+ 54. Kh7 Qe4+ 55. Kh6 Qc6+ 56. Qg6 Qg2 57. e8=Q (57. e8=B Qd2+ 58. g5 Kxb3 $18) 57... Qd2+ 58. g5) 53... Qe6 {[%emt 0:00:42]} 54. g5 {[%emt 0:00:17] Weighted Error Value: White=0.29 (precise) /Black=0.35.  Loses game:     	---       	Black=1      Mistake:       	White=2     	Black=4      Inaccurate:     	---       	Black=1      OK:         	White=7     	Black=7      Best:        	White=1     	---        Strong:       	White=1     	Black=1} 1-0